[Event "Torneo Nuevo Centro. Jornada 11"]
[Site "Chess.com"]
[Date "2020.08.28"]
[Round "6"]
[White "Carbonell Bofill, Carlos Eloy"]
[Black "Vidarte Morales, Arturo"]
[Result "0-1"]
[WhiteElo "1909"]
[BlackElo "2209"]
[TimeControl "180+2"]
[EndTime "11:29:00 PDT"]
[Termination "Victoria de Arturo_Vidarte por abandono"]

1. d4 {[%clk 0:03:00.6]} 1... Nf6 {[%clk 0:02:59.4]} 2. Nf3 {[%clk 0:03:01.1]}
2... g6 {[%clk 0:02:59.7]} 3. g3 {[%clk 0:03:00.7]} 3... Bg7 {[%clk 0:03:00.9]}
4. Bg2 {[%clk 0:03:02.6]} 4... O-O {[%clk 0:02:59.2]} 5. O-O {[%clk 0:03:04.5]}
5... d5 {[%clk 0:02:59.8]} 6. c4 {[%clk 0:03:03.8]} 6... Nc6 {[%clk 0:03:00.1]}
7. cxd5 {[%clk 0:02:55.2]} 7... Nxd5 {[%clk 0:02:59.6]} 8. Nc3 {[%clk
0:02:50.9]} 8... Nb6 {[%clk 0:02:57]} 9. e3 {[%clk 0:02:44.1]} 9... Re8 {[%clk
0:02:56.4]} 10. a4 {[%clk 0:02:42.8]} 10... a5 {[%clk 0:02:55.5]} 11. Nb5 {[%clk
0:02:12.9]} 11... Be6 {[%clk 0:02:18.2]} 12. Bd2 {[%clk 0:02:07.9]} 12... Bc4
{[%clk 0:02:07.7]} 13. Bc3 {[%clk 0:01:59.6]} 13... Bxf1 {[%clk 0:02:05.4]} 14.
Kxf1 {[%clk 0:01:53.6]} 14... e6 {[%clk 0:02:05]} 15. h4 {[%clk 0:01:49.2]}
15... h5 {[%clk 0:02:02.6]} 16. Rc1 {[%clk 0:01:46]} 16... Nd5 {[%clk
0:02:02.6]} 17. Ng5 {[%clk 0:01:35.5]} 17... Nce7 {[%clk 0:01:53.6]} 18. Ne4
{[%clk 0:01:20.9]} 18... Nf5 {[%clk 0:01:49.3]} 19. Nc5 {[%clk 0:01:16.6]} 19...
Nfxe3+ {[%clk 0:01:48.8]} 0

[Event "Torneo Nuevo Centro. Jornada 11"]
[Site "Chess.com"]
[Date "2020.08.28"]
[Round "6"]
[White "Luque Saiz, Andrés"]
[Black "Montesinos Diaz, Luis"]
[Result "1-0"]
[WhiteElo "2057"]
[BlackElo "1890"]
[TimeControl "180+2"]
[EndTime "11:29:05 PDT"]
[Termination "Victoria de Chuch1n por abandono"]

1. Nf3 {[%clk 0:03:01.9]} 1... d5 {[%clk 0:02:57.9]} 2. d4 {[%clk 0:03:02.3]}
2... Nf6 {[%clk 0:02:53.9]} 3. Bg5 {[%clk 0:03:01.5]} 3... c5 {[%clk 0:02:53.2]}
4. e3 {[%clk 0:02:58.5]} 4... Nc6 {[%clk 0:02:52.8]} 5. c3 {[%clk 0:02:56.8]}
5... Bg4 {[%clk 0:02:49]} 6. Nbd2 {[%clk 0:02:57.1]} 6... e6 {[%clk 0:02:49.6]}
7. Be2 {[%clk 0:02:53.1]} 7... Be7 {[%clk 0:02:47.9]} 8. O-O {[%clk 0:02:53.6]}
8... O-O {[%clk 0:02:45.2]} 9. h3 {[%clk 0:02:54.5]} 9... Bh5 {[%clk 0:02:44.1]}
10. Ne5 {[%clk 0:02:17.8]} 10... Bxe2 {[%clk 0:02:42.4]} 11. Qxe2 {[%clk
0:02:19.7]} 11... Nxe5 {[%clk 0:02:43.1]} 12. dxe5 {[%clk 0:02:21.6]} 12... Nd7
{[%clk 0:02:44]} 13. Bxe7 {[%clk 0:02:22.4]} 13... Qxe7 {[%clk 0:02:45.9]} 14.
f4 {[%clk 0:02:23.8]} 14... Rac8 {[%clk 0:02:42.6]} 15. e4 {[%clk 0:02:20.4]}
15... Nb6 {[%clk 0:02:42.3]} 16. f5 {[%clk 0:02:03.8]} 16... dxe4 {[%clk
0:02:39.2]} 17. f6 {[%clk 0:01:55.4]} 17... Qc7 {[%clk 0:02:09.1]} 18. Qg4
{[%clk 0:01:44.3]} 18... g6 {[%clk 0:02:09.1]} 19. Qf4 {[%clk 0:01:42.4]} 19...
Kh8 {[%clk 0:02:08.1]} 20. Nxe4 {[%clk 0:01:42.2]} 20... Nd5 {[%clk 0:02:05.3]}
21. Qh6 {[%clk 0:01:35.8]} 21... Rg8 {[%clk 0:01:44.2]} 22. Ng5 {[%clk
0:01:36.1]} 1

[Event "Torneo Nuevo Centro. Jornada 11"]
[Site "Chess.com"]
[Date "2020.08.28"]
[Round "6"]
[White "Martínez Escandell, Alfonso"]
[Black "Hernández Tomás, Efrén"]
[Result "1-0"]
[WhiteElo "1910"]
[BlackElo "1128"]
[TimeControl "180+2"]
[EndTime "11:30:11 PDT"]
[Termination "Victoria de Alfonso10 por jaque mate"]

1. e4 {[%clk 0:03:01.9]} 1... e5 {[%clk 0:03:00.7]} 2. Bc4 {[%clk 0:03:02.6]}
2... Nf6 {[%clk 0:03:01.5]} 3. Nc3 {[%clk 0:03:02.6]} 3... Nc6 {[%clk
0:03:01.1]} 4. Nf3 {[%clk 0:03:02.5]} 4... d6 {[%clk 0:02:58.6]} 5. O-O {[%clk
0:03:02.1]} 5... Be7 {[%clk 0:02:58.5]} 6. d4 {[%clk 0:03:02.3]} 6... exd4
{[%clk 0:02:58.3]} 7. Nxd4 {[%clk 0:03:01.5]} 7... Nxd4 {[%clk 0:02:54.7]} 8.
Qxd4 {[%clk 0:03:01.9]} 8... c5 {[%clk 0:02:55.1]} 9. Qd1 {[%clk 0:02:59.2]}
9... b6 {[%clk 0:02:55.5]} 10. Qf3 {[%clk 0:02:51]} 10... Bb7 {[%clk 0:02:54.3]}
11. Re1 {[%clk 0:02:43.9]} 11... O-O {[%clk 0:02:49]} 12. Qg3 {[%clk 0:02:44.5]}
12... Nxe4 {[%clk 0:02:46]} 13. Nxe4 {[%clk 0:02:42]} 13... Bxe4 {[%clk
0:02:43]} 14. Rxe4 {[%clk 0:02:42.1]} 14... Bf6 {[%clk 0:02:43.5]} 15. Rg4
{[%clk 0:02:32.8]} 15... Qe7 {[%clk 0:02:38.6]} 16. Bf4 {[%clk 0:02:24.9]} 16...
Bxb2 {[%clk 0:02:31.4]} 17. Bxd6 {[%clk 0:02:17.9]} 17... Qe2 {[%clk 0:02:20]}
18. Bxe2 {[%clk 0:02:18]} 18... Bxa1 {[%clk 0:02:18.9]} 19. Bxf8 {[%clk
0:02:14.9]} 19... Rxf8 {[%clk 0:02:18.6]} 20. h4 {[%clk 0:02:12.8]} 20... Re8
{[%clk 0:02:18.8]} 21. Bf1 {[%clk 0:02:06.8]} 21... Be5 {[%clk 0:02:11.5]} 22.
Qd3 {[%clk 0:02:04.5]} 22... Bb8 {[%clk 0:02:07.3]} 23. g3 {[%clk 0:02:05.1]}
23... h6 {[%clk 0:02:02.3]} 24. Qd7 {[%clk 0:02:01.2]} 24... Rf8 {[%clk
0:02:00.5]} 25. Bc4 {[%clk 0:01:58.7]} 25... Kh7 {[%clk 0:01:55.2]} 26. Bxf7
{[%clk 0:01:57.7]} 26... g5 {[%clk 0:01:45.9]} 27. Bd5+ {[%clk 0:01:54.7]} 27...
Kg6 {[%clk 0:01:42.1]} 28. hxg5 {[%clk 0:01:50.8]} 28... hxg5 {[%clk 0:01:42]}
29. f4 {[%clk 0:01:40.8]} 29... Rf5 {[%clk 0:01:39.2]} 30. Be4 {[%clk
0:01:38.2]} 30... Kf6 {[%clk 0:01:34.2]} 31. Qxf5+ {[%clk 0:01:38.3]} 31... Ke7
{[%clk 0:01:34.2]} 32. Qxg5+ {[%clk 0:01:38.3]} 32... Kf7 {[%clk 0:01:34]} 33.
Qg8+ {[%clk 0:01:38.4]} 33... Kf6 {[%clk 0:01:33.6]} 34. Rg6+ {[%clk 0:01:39.1]}
34... Ke7 {[%clk 0:01:33]} 35. Qh7+ {[%clk 0:01:39.7]} 35... Kd8 {[%clk
0:01:31]} 36. Rg8# {[%clk 0:01:35.8]} 1

[Event "Torneo Nuevo Centro. Jornada 11"]
[Site "Chess.com"]
[Date "2020.08.28"]
[Round "6"]
[White "Beneyto de Ramon, Guillermo"]
[Black "Blanco Solaz, Ramón"]
[Result "0-1"]
[WhiteElo "1651"]
[BlackElo "1961"]
[TimeControl "180+2"]
[EndTime "11:30:14 PDT"]
[Termination "Victoria de Rbs77 por jaque mate"]

1. c4 {[%clk 0:03:01.6]} 1... d6 {[%clk 0:03:00.1]} 2. Nc3 {[%clk 0:03:01.9]}
2... e5 {[%clk 0:03:00.3]} 3. g3 {[%clk 0:03:02.6]} 3... g6 {[%clk 0:03:01.3]}
4. Bg2 {[%clk 0:03:03.7]} 4... Bg7 {[%clk 0:03:02.8]} 5. d3 {[%clk 0:03:04.9]}
5... Nc6 {[%clk 0:02:58.5]} 6. Nf3 {[%clk 0:03:05.7]} 6... f5 {[%clk 0:02:57.7]}
7. Bg5 {[%clk 0:03:06.1]} 7... Nf6 {[%clk 0:02:56.2]} 8. Nd5 {[%clk 0:03:06]}
8... O-O {[%clk 0:02:55.2]} 9. Nxf6+ {[%clk 0:03:06]} 9... Bxf6 {[%clk
0:02:56.2]} 10. Bxf6 {[%clk 0:03:07]} 10... Qxf6 {[%clk 0:02:56.8]} 11. Qd2
{[%clk 0:03:05.8]} 11... Qg7 {[%clk 0:02:50]} 12. O-O {[%clk 0:03:06.3]} 12...
h6 {[%clk 0:02:50.8]} 13. Rab1 {[%clk 0:03:03.4]} 13... a5 {[%clk 0:02:49.6]}
14. a3 {[%clk 0:03:03.3]} 14... g5 {[%clk 0:02:49.3]} 15. h3 {[%clk 0:03:02.1]}
15... Nd8 {[%clk 0:02:43]} 16. Nh2 {[%clk 0:02:59]} 16... Kh8 {[%clk 0:02:39.9]}
17. b4 {[%clk 0:02:59.3]} 17... axb4 {[%clk 0:02:40.3]} 18. axb4 {[%clk
0:03:01.2]} 18... Ne6 {[%clk 0:02:41.8]} 19. e3 {[%clk 0:02:59.2]} 19... f4
{[%clk 0:02:17.5]} 20. b5 {[%clk 0:02:50.2]} 20... h5 {[%clk 0:02:13.8]} 21. Qe2
{[%clk 0:02:48.4]} 21... Qg6 {[%clk 0:02:11.4]} 22. Be4 {[%clk 0:02:46.7]} 22...
Qh6 {[%clk 0:02:13]} 23. Bf3 {[%clk 0:02:39.7]} 23... Ng7 {[%clk 0:02:12.3]} 24.
Bg2 {[%clk 0:02:36.7]} 24... Qg6 {[%clk 0:02:06.6]} 25. b6 {[%clk 0:02:35.1]}
25... c6 {[%clk 0:02:06]} 26. Ra1 {[%clk 0:02:20.1]} 26... Rb8 {[%clk
0:02:02.2]} 27. g4 {[%clk 0:02:08.1]} 27... Be6 {[%clk 0:01:55.8]} 28. Be4
{[%clk 0:02:07.4]} 28... Qh6 {[%clk 0:01:56.4]} 29. Bf3 {[%clk 0:01:57.9]} 29...
d5 {[%clk 0:01:54.9]} 30. gxh5 {[%clk 0:01:51.7]} 30... Bxh3 {[%clk 0:01:54.9]}
31. Ng4 {[%clk 0:01:43.1]} 31... Bxg4 {[%clk 0:01:55.4]} 32. Bxg4 {[%clk
0:01:43.6]} 32... Nf5 {[%clk 0:01:55.3]} 33. Bxf5 {[%clk 0:01:28.8]} 33... Rxf5
{[%clk 0:01:56]} 34. Kg2 {[%clk 0:01:28.7]} 34... f3+ {[%clk 0:01:56.5]} 35.
Qxf3 {[%clk 0:01:27.8]} 35... Rxf3 {[%clk 0:01:57.6]} 36. Kxf3 {[%clk
0:01:29.1]} 36... Qxh5+ {[%clk 0:01:59]} 37. Kg3 {[%clk 0:01:30.2]} 37... Qh4+
{[%clk 0:01:59]} 38. Kg2 {[%clk 0:01:31]} 38... Qg4+ {[%clk 0:02:00.2]} 39. Kh2
{[%clk 0:01:30.1]} 39... Kg7 {[%clk 0:02:01.7]} 40. Rg1 {[%clk 0:01:29.1]} 40...
Rh8# {[%clk 0:02:02.6]} 0

[Event "Torneo Nuevo Centro. Jornada 11"]
[Site "Chess.com"]
[Date "2020.08.28"]
[Round "6"]
[White "Tormos Beltran, Maite"]
[Black "Bendayán Claros, Aaron"]
[Result "0-1"]
[WhiteElo "1473"]
[BlackElo "1988"]
[TimeControl "180+2"]
[EndTime "11:30:15 PDT"]
[Termination "Victoria de Cuajada_Zero por abandono"]

1. d4 {[%clk 0:03:01.9]} 1... d5 {[%clk 0:02:54]} 2. c4 {[%clk 0:03:02.1]} 2...
e6 {[%clk 0:02:53.9]} 3. Nf3 {[%clk 0:03:02]} 3... c6 {[%clk 0:02:51.4]} 4. Nc3
{[%clk 0:03:02.2]} 4... f5 {[%clk 0:02:49]} 5. Bf4 {[%clk 0:03:00.1]} 5... Bd6
{[%clk 0:02:49.6]} 6. Bxd6 {[%clk 0:02:58.5]} 6... Qxd6 {[%clk 0:02:51.5]} 7. e3
{[%clk 0:02:57.7]} 7... Nd7 {[%clk 0:02:51.4]} 8. Rc1 {[%clk 0:02:54.7]} 8...
Ngf6 {[%clk 0:02:52]} 9. cxd5 {[%clk 0:02:55]} 9... exd5 {[%clk 0:02:52.3]} 10.
a3 {[%clk 0:02:47.8]} 10... O-O {[%clk 0:02:50.9]} 11. Bd3 {[%clk 0:02:48.6]}
11... Ne4 {[%clk 0:02:40.1]} 12. b4 {[%clk 0:02:35.7]} 12... a6 {[%clk 0:02:35]}
13. Qb3 {[%clk 0:02:08.4]} 13... Kh8 {[%clk 0:02:34.3]} 14. Nd2 {[%clk
0:01:42.5]} 14... Nxd2 {[%clk 0:02:31.4]} 15. Kxd2 {[%clk 0:01:36.1]} 15... Nf6
{[%clk 0:02:31.1]} 16. f3 {[%clk 0:01:35]} 16... f4 {[%clk 0:02:28.5]} 17. Rhe1
{[%clk 0:01:23.8]} 17... fxe3+ {[%clk 0:02:25]} 18. Kxe3 {[%clk 0:01:18]} 18...
Bd7 {[%clk 0:02:22.4]} 19. Kf2 {[%clk 0:01:14.7]} 19... Qxh2 {[%clk 0:02:14.7]}
20. Rh1 {[%clk 0:01:14.6]} 20... Qf4 {[%clk 0:02:14.9]} 21. Qc2 {[%clk
0:00:55.1]} 21... Qxd4+ {[%clk 0:02:14.5]} 22. Kf1 {[%clk 0:00:50.8]} 22... h6
{[%clk 0:02:15.1]} 23. Re1 {[%clk 0:00:36.4]} 23... Rae8 {[%clk 0:02:14.3]} 24.
Rxe8 {[%clk 0:00:32.9]} 24... Rxe8 {[%clk 0:02:16.2]} 25. Bg6 {[%clk 0:00:32.6]}
25... Re7 {[%clk 0:02:13.1]} 26. Qe2 {[%clk 0:00:14.7]} 26... Rxe2 {[%clk
0:02:13.1]} 0

[Event "Torneo Nuevo Centro. Jornada 11"]
[Site "Chess.com"]
[Date "2020.08.28"]
[Round "6"]
[White "Gukasov, Artem"]
[Black "Pardo Ruiz, Carlos"]
[Result "0-1"]
[WhiteElo "1440"]
[BlackElo "1703"]
[TimeControl "180+2"]
[EndTime "11:30:28 PDT"]
[Termination "Victoria de Carlitoscarlsen por abandono"]

1. e4 {[%clk 0:03:01.9]} 1... Nf6 {[%clk 0:02:59.8]} 2. Nc3 {[%clk 0:03:01.1]}
2... e5 {[%clk 0:02:58.7]} 3. Nf3 {[%clk 0:03:01]} 3... Nc6 {[%clk 0:02:58]} 4.
Bc4 {[%clk 0:03:01.7]} 4... Nxe4 {[%clk 0:02:57.8]} 5. Nxe4 {[%clk 0:02:53.7]}
5... d5 {[%clk 0:02:57.7]} 6. Bxd5 {[%clk 0:02:40.5]} 6... Qxd5 {[%clk
0:02:59.6]} 7. Nc3 {[%clk 0:02:40.3]} 7... Qd8 {[%clk 0:02:59.1]} 8. d3 {[%clk
0:02:39.5]} 8... Bd6 {[%clk 0:02:57.3]} 9. Be3 {[%clk 0:02:20.9]} 9... O-O
{[%clk 0:02:45.7]} 10. O-O {[%clk 0:02:20.8]} 10... f5 {[%clk 0:02:42.1]} 11. d4
{[%clk 0:02:15.8]} 11... exd4 {[%clk 0:02:38.7]} 12. Nxd4 {[%clk 0:02:13.4]}
12... Nxd4 {[%clk 0:02:39]} 13. Bxd4 {[%clk 0:02:14.3]} 13... Be6 {[%clk
0:02:29.4]} 14. Re1 {[%clk 0:02:03.9]} 14... Bc4 {[%clk 0:02:28.2]} 15. b3
{[%clk 0:01:58.5]} 15... Ba6 {[%clk 0:02:27.4]} 16. Be3 {[%clk 0:01:50.6]} 16...
Qd7 {[%clk 0:02:16.2]} 17. Qd2 {[%clk 0:01:51]} 17... Rad8 {[%clk 0:02:14.6]}
18. Rad1 {[%clk 0:01:50.3]} 18... Rfe8 {[%clk 0:02:09.1]} 19. h3 {[%clk
0:01:22.1]} 19... Qf7 {[%clk 0:02:05.1]} 20. Qc1 {[%clk 0:01:20.2]} 20... Bb4
{[%clk 0:01:56.3]} 21. Qb2 {[%clk 0:01:15.1]} 21... f4 {[%clk 0:01:43.5]} 22.
Bd2 {[%clk 0:00:29.9]} 22... Rxd2 {[%clk 0:01:28.8]} 23. Rxe8+ {[%clk
0:00:28.9]} 23... Qxe8 {[%clk 0:01:27.1]} 24. Rxd2 {[%clk 0:00:28.6]} 24... Qe1+
{[%clk 0:01:27.3]} 0

[Event "Torneo Nuevo Centro. Jornada 11"]
[Site "Chess.com"]
[Date "2020.08.28"]
[Round "6"]
[White "Marques Montolio, Luis"]
[Black "Pedros Viudes, Santiago"]
[Result "1-0"]
[WhiteElo "1486"]
[BlackElo "1894"]
[TimeControl "180+2"]
[EndTime "11:30:54 PDT"]
[Termination "Victoria de ateneomaritimo por tiempo"]

1. e4 {[%clk 0:03:01.9]} 1... e6 {[%clk 0:02:59.5]} 2. d4 {[%clk 0:03:01.3]}
2... d5 {[%clk 0:03:01.4]} 3. exd5 {[%clk 0:03:01.2]} 3... exd5 {[%clk
0:03:02.5]} 4. Bd3 {[%clk 0:03:02]} 4... Bd6 {[%clk 0:03:03.6]} 5. Nf3 {[%clk
0:03:01.3]} 5... Bg4 {[%clk 0:03:04.4]} 6. O-O {[%clk 0:02:59.6]} 6... Nc6
{[%clk 0:03:00.6]} 7. Re1+ {[%clk 0:02:59.8]} 7... Nce7 {[%clk 0:03:00.2]} 8.
Bg5 {[%clk 0:02:59.2]} 8... Qd7 {[%clk 0:02:58.6]} 9. Nbd2 {[%clk 0:02:55.5]}
9... h6 {[%clk 0:02:56.2]} 10. Bh4 {[%clk 0:02:56]} 10... g5 {[%clk 0:02:56.7]}
11. Bg3 {[%clk 0:02:56.3]} 11... O-O-O {[%clk 0:02:42.5]} 12. a4 {[%clk
0:02:53.7]} 12... f6 {[%clk 0:02:34]} 13. c3 {[%clk 0:02:52.2]} 13... h5 {[%clk
0:02:34.4]} 14. Bxd6 {[%clk 0:02:50]} 14... Qxd6 {[%clk 0:02:34.2]} 15. h3
{[%clk 0:02:50.1]} 15... Bf5 {[%clk 0:02:31.3]} 16. Qc2 {[%clk 0:02:47.8]} 16...
Bxd3 {[%clk 0:02:22.8]} 17. Qxd3 {[%clk 0:02:48]} 17... Nh6 {[%clk 0:02:24.7]}
18. b4 {[%clk 0:02:41]} 18... g4 {[%clk 0:02:24.4]} 19. Nh4 {[%clk 0:02:32.1]}
19... f5 {[%clk 0:01:31.6]} 20. b5 {[%clk 0:02:14.6]} 20... Rhg8 {[%clk
0:01:13.8]} 21. Re5 {[%clk 0:02:02.5]} 21... Ng6 {[%clk 0:01:00.1]} 22. Nxf5
{[%clk 0:01:55.8]} 22... Nxf5 {[%clk 0:00:43.1]} 23. Qxf5+ {[%clk 0:01:52.9]}
23... Kb8 {[%clk 0:00:45]} 24. Re6 {[%clk 0:01:42.3]} 24... Nh4 {[%clk
0:00:33.6]} 25. Rxd6 {[%clk 0:01:35.2]} 25... Nxf5 {[%clk 0:00:33.3]} 26. Rxd8+
{[%clk 0:01:35.7]} 1

[Event "Torneo Nuevo Centro. Jornada 11"]
[Site "Chess.com"]
[Date "2020.08.28"]
[Round "6"]
[White "Gómez Alonso, Óscar"]
[Black "Gimenez Saiz, Jose Raul"]
[Result "1/2-1/2"]
[WhiteElo "1806"]
[BlackElo "1829"]
[TimeControl "180+2"]
[EndTime "11:31:07 PDT"]
[Termination "Tablas por repeticiÃ³n"]

1. d4 {[%clk 0:03:00.8]} 1... d6 {[%clk 0:02:59.5]} 2. c4 {[%clk 0:03:00.7]}
2... e5 {[%clk 0:02:59.7]} 3. dxe5 {[%clk 0:03:01.9]} 3... dxe5 {[%clk
0:03:01.3]} 4. Qxd8+ {[%clk 0:03:03]} 4... Kxd8 {[%clk 0:03:03.2]} 5. a3 {[%clk
0:02:58.6]} 5... Be6 {[%clk 0:03:02.3]} 6. e3 {[%clk 0:02:59.5]} 6... f6 {[%clk
0:02:56.5]} 7. Nc3 {[%clk 0:03:00.1]} 7... Nd7 {[%clk 0:02:55.6]} 8. b3 {[%clk
0:02:58.6]} 8... c6 {[%clk 0:02:54.1]} 9. Bb2 {[%clk 0:02:59]} 9... Kc7 {[%clk
0:02:54.1]} 10. O-O-O {[%clk 0:02:59.7]} 10... Nh6 {[%clk 0:02:52.5]} 11. Be2
{[%clk 0:02:54.9]} 11... Ng4 {[%clk 0:02:43.3]} 12. Rf1 {[%clk 0:02:49.3]} 12...
Be7 {[%clk 0:02:29.8]} 13. h3 {[%clk 0:02:50.3]} 13... Nh6 {[%clk 0:02:30.2]}
14. Nf3 {[%clk 0:02:48.4]} 14... Nf7 {[%clk 0:02:27.2]} 15. Rd1 {[%clk
0:02:48.1]} 15... a5 {[%clk 0:02:26.8]} 16. Rd2 {[%clk 0:02:31.5]} 16... Nc5
{[%clk 0:02:24.3]} 17. b4 {[%clk 0:02:14.4]} 17... axb4 {[%clk 0:02:17.9]} 18.
axb4 {[%clk 0:02:16.3]} 18... Nb3+ {[%clk 0:02:18.9]} 19. Kc2 {[%clk 0:02:15.5]}
19... Nxd2 {[%clk 0:02:19.8]} 20. Nxd2 {[%clk 0:02:15.6]} 20... Rhd8 {[%clk
0:02:15.4]} 21. c5 {[%clk 0:02:14.3]} 21... Bf5+ {[%clk 0:01:51.9]} 22. e4
{[%clk 0:02:14.2]} 22... Be6 {[%clk 0:01:49.6]} 23. Bc4 {[%clk 0:02:15.1]} 23...
Bxc4 {[%clk 0:01:48.3]} 24. Nxc4 {[%clk 0:02:15.9]} 24... Ra6 {[%clk 0:01:04.7]}
25. h4 {[%clk 0:02:06.3]} 25... b5 {[%clk 0:00:40.9]} 26. cxb6+ {[%clk
0:02:04.8]} 26... Rxb6 {[%clk 0:00:41.5]} 27. Nxb6 {[%clk 0:02:05.7]} 27... Kxb6
{[%clk 0:00:42.4]} 28. Kb3 {[%clk 0:01:48.9]} 28... Rd2 {[%clk 0:00:32.6]} 29.
Rf1 {[%clk 0:01:49.6]} 29... Nh6 {[%clk 0:00:20.6]} 30. Nb1 {[%clk 0:01:40.7]}
30... Re2 {[%clk 0:00:20.7]} 31. Nc3 {[%clk 0:01:37.7]} 31... Rd2 {[%clk
0:00:18.8]} 32. Nb1 {[%clk 0:01:38.6]} 32... Re2 {[%clk 0:00:19.6]} 33. Nc3
{[%clk 0:01:36.4]} 33... Rd2 {[%clk 0:00:20.6]} 1/2-1

[Event "Torneo Nuevo Centro. Jornada 11"]
[Site "Chess.com"]
[Date "2020.08.28"]
[Round "6"]
[White "Fenollar Jorda, Manolo"]
[Black "Muñoz Pantoja, Miguel"]
[Result "1-0"]
[WhiteElo "2491"]
[BlackElo "2445"]
[TimeControl "180+2"]
[EndTime "11:31:13 PDT"]
[Termination "Victoria de Cucudrulu por abandono"]

1. d4 {[%clk 0:03:01.9]} 1... Nf6 {[%clk 0:02:59.7]} 2. Nf3 {[%clk 0:03:03.2]}
2... c5 {[%clk 0:03:00.6]} 3. c3 {[%clk 0:03:03.5]} 3... g6 {[%clk 0:03:01.6]}
4. Bg5 {[%clk 0:03:04.2]} 4... Bg7 {[%clk 0:03:02.5]} 5. e3 {[%clk 0:03:05.4]}
5... O-O {[%clk 0:03:02.5]} 6. Nbd2 {[%clk 0:03:06.4]} 6... d6 {[%clk
0:03:03.8]} 7. Be2 {[%clk 0:03:01.7]} 7... Nc6 {[%clk 0:03:04.5]} 8. O-O {[%clk
0:03:02.5]} 8... h6 {[%clk 0:03:04.5]} 9. Bh4 {[%clk 0:03:02.9]} 9... g5 {[%clk
0:03:02.9]} 10. Bg3 {[%clk 0:03:03.6]} 10... Nh5 {[%clk 0:03:04.1]} 11. a3
{[%clk 0:03:03.8]} 11... Nxg3 {[%clk 0:03:01.6]} 12. hxg3 {[%clk 0:03:05.7]}
12... e5 {[%clk 0:02:51.4]} 13. dxc5 {[%clk 0:02:58.8]} 13... dxc5 {[%clk
0:02:52.3]} 14. e4 {[%clk 0:03:00.3]} 14... Qe7 {[%clk 0:02:49.7]} 15. Nc4
{[%clk 0:03:00.7]} 15... Rd8 {[%clk 0:02:50]} 16. Qc2 {[%clk 0:03:00.2]} 16...
Qc7 {[%clk 0:02:42.7]} 17. Ne3 {[%clk 0:02:58.1]} 17... Be6 {[%clk 0:02:43.6]}
18. Bc4 {[%clk 0:02:56.3]} 18... Bxc4 {[%clk 0:02:42.6]} 19. Nxc4 {[%clk
0:02:58.2]} 19... b5 {[%clk 0:02:43.2]} 20. Ne3 {[%clk 0:02:58.5]} 20... c4
{[%clk 0:02:42.2]} 21. a4 {[%clk 0:02:54.1]} 21... a6 {[%clk 0:02:42.7]} 22.
Rfd1 {[%clk 0:02:46.4]} 22... Ne7 {[%clk 0:02:40.1]} 23. axb5 {[%clk 0:02:28.5]}
23... axb5 {[%clk 0:02:41]} 24. Rxa8 {[%clk 0:02:29.3]} 24... Rxa8 {[%clk
0:02:41.8]} 25. Qd2 {[%clk 0:02:28.2]} 25... Ra2 {[%clk 0:02:31.1]} 26. Nh2
{[%clk 0:02:23.4]} 26... Kh7 {[%clk 0:01:51.4]} 27. Nhf1 {[%clk 0:02:19.4]}
27... Qc6 {[%clk 0:01:48.8]} 28. Nd5 {[%clk 0:02:08.6]} 28... Nxd5 {[%clk
0:01:28.4]} 29. exd5 {[%clk 0:02:10.5]} 29... Qd7 {[%clk 0:01:28.5]} 30. Ne3
{[%clk 0:02:06.4]} 30... f5 {[%clk 0:01:26.6]} 31. Qc2 {[%clk 0:02:05.2]} 31...
e4 {[%clk 0:01:27.7]} 32. g4 {[%clk 0:02:05.4]} 32... b4 {[%clk 0:01:20.6]} 33.
Qb1 {[%clk 0:01:55.7]} 33... Ra6 {[%clk 0:00:43.4]} 34. Nxf5 {[%clk 0:01:54.8]}
34... bxc3 {[%clk 0:00:44.5]} 35. bxc3 {[%clk 0:01:56.4]} 35... Qe8 {[%clk
0:00:34.9]} 36. Nxg7 {[%clk 0:01:41.4]} 36... Kxg7 {[%clk 0:00:31.1]} 37. Qb7+
{[%clk 0:01:41.7]} 1

[Event "Torneo Nuevo Centro. Jornada 11"]
[Site "Chess.com"]
[Date "2020.08.28"]
[Round "6"]
[White "Yatseta Fernandez, Marc Kazymyr"]
[Black "Ursariu, Nikolas Victor"]
[Result "1-0"]
[WhiteElo "1505"]
[BlackElo "1158"]
[TimeControl "180+2"]
[EndTime "11:31:50 PDT"]
[Termination "Victoria de K_73 por abandono"]

1. d4 {[%clk 0:03:01.9]} 1... d5 {[%clk 0:02:59]} 2. c4 {[%clk 0:03:02.1]} 2...
dxc4 {[%clk 0:02:57.9]} 3. Nf3 {[%clk 0:03:03.5]} 3... Nf6 {[%clk 0:02:57.3]} 4.
e3 {[%clk 0:03:00.5]} 4... b5 {[%clk 0:02:55.5]} 5. a4 {[%clk 0:02:57.8]} 5...
Bd7 {[%clk 0:02:52.6]} 6. Ne5 {[%clk 0:02:50.1]} 6... bxa4 {[%clk 0:02:45.8]} 7.
Nxd7 {[%clk 0:02:49.8]} 7... Qxd7 {[%clk 0:02:45.7]} 8. Bxc4 {[%clk 0:02:40.2]}
8... e6 {[%clk 0:02:43.1]} 9. Qf3 {[%clk 0:02:31.6]} 9... Nc6 {[%clk 0:02:39.2]}
10. Bb5 {[%clk 0:02:29.9]} 10... Nd5 {[%clk 0:02:34.4]} 11. Nc3 {[%clk
0:02:23.8]} 11... Bb4 {[%clk 0:02:29.5]} 12. Bd2 {[%clk 0:02:23.9]} 12... O-O
{[%clk 0:02:25.6]} 13. O-O {[%clk 0:02:10.7]} 13... Rab8 {[%clk 0:02:20.6]} 14.
Bxa4 {[%clk 0:02:06.8]} 14... Bxc3 {[%clk 0:02:18]} 15. Bxc3 {[%clk 0:02:03.9]}
15... h6 {[%clk 0:02:08.5]} 16. Rfc1 {[%clk 0:01:37]} 16... Rfe8 {[%clk
0:01:51.1]} 17. Bd2 {[%clk 0:01:30.2]} 17... Rb6 {[%clk 0:01:41.2]} 18. Ba5
{[%clk 0:01:10.7]} 18... Ra6 {[%clk 0:01:37.4]} 19. Bb5 {[%clk 0:01:11.2]} 19...
Rxa5 {[%clk 0:01:27]} 20. Rxa5 {[%clk 0:01:09.1]} 20... Nxa5 {[%clk 0:01:23.8]}
21. Bxd7 {[%clk 0:01:09.5]} 21... Rd8 {[%clk 0:01:23.7]} 22. Bb5 {[%clk
0:01:02]} 22... Rb8 {[%clk 0:01:22]} 23. Bd3 {[%clk 0:00:58.9]} 23... Rxb2
{[%clk 0:01:22.1]} 24. Rb1 {[%clk 0:00:51]} 24... Rxb1+ {[%clk 0:01:16.6]} 25.
Bxb1 {[%clk 0:00:52.9]} 25... Nc4 {[%clk 0:01:13]} 26. Ba2 {[%clk 0:00:48.9]}
26... Nd2 {[%clk 0:01:08.7]} 27. Qe2 {[%clk 0:00:46]} 27... Ne4 {[%clk
0:01:08.1]} 28. Bxd5 {[%clk 0:00:43.9]} 28... exd5 {[%clk 0:01:08.1]} 29. Qb5
{[%clk 0:00:43.7]} 29... Nd2 {[%clk 0:01:04.6]} 30. Qxd5 {[%clk 0:00:40.5]}
30... Nb1 {[%clk 0:00:57.2]} 31. Qa8+ {[%clk 0:00:37.3]} 31... Kh7 {[%clk
0:00:53.8]} 32. Qxa7 {[%clk 0:00:39.2]} 32... c6 {[%clk 0:00:51.6]} 33. Qxf7
{[%clk 0:00:39.5]} 33... Nc3 {[%clk 0:00:48.9]} 34. Qc7 {[%clk 0:00:38.1]} 34...
Nd5 {[%clk 0:00:47.9]} 35. Qxc6 {[%clk 0:00:38]} 35... Nf6 {[%clk 0:00:49.8]}
1